bitfinex-derivatives/quotes_BNBF0:USTF0_20250128
["timestamp","ask_amount","ask_price","bid_price","bid_amount"]
[1738100947869,0.27711082,664.14,662.44,1.11870298]
[1738100948073,0.27711082,664.13,662.44,1.11870298]
[1738100948274,0.27711082,664.12,662.44,1.11870298]
[1738100948468,0.27711082,664.11,662.44,1.11870298]
[1738100948672,0.27711082,664.1,662.44,1.11870298]
[1738100948975,0.27711082,664.09,662.44,1.11870298]
[1738100949166,0.27711082,664.08,662.44,1.11870298]
[1738100949474,1.38689876,664.07,662.5,1.11870298]
[1738100949675,0.27711082,664.06,662.5,1.11870298]
[1738100949875,0.27711082,664.05,662.5,1.11870298]
[1738100950274,0.27711082,664.04,662.5,1.11870298]
[1738100950470,0.27711082,664.03,662.5,1.11870298]
[1738100950776,0.27711082,664.02,662.5,1.11870298]
[1738100950975,0.27711082,664.01,662.5,1.11870298]
[1738100951176,0.27711082,664.0,662.5,1.11870298]
[1738100951371,0.27711082,663.99,662.5,1.11870298]
[1738100951575,0.27711082,663.98,662.5,1.11870298]
[1738100951774,0.27715667,663.97,662.5,1.11870298]
[1738100952070,0.27715667,663.96,662.5,1.11870298]
[1738100952274,0.27715667,664.06,662.5,1.11870298]
[1738100952470,0.27715667,664.05,662.5,1.11870298]
[1738100952674,0.27715667,664.06,662.5,1.11870298]
[1738100952870,1.57409083,664.04,662.5,1.11870298]
[1738100953071,0.27715667,664.03,662.41,1.11870298]
[1738100953472,0.27710634,664.02,662.41,1.11870298]
[1738100953672,0.27710634,664.01,662.41,1.11870298]
[1738100953878,0.27710634,664.03,662.41,1.11870298]
[1738100955885,0.30119574,664.02,662.45,1.11870298]
[1738100956084,0.27710634,664.01,662.46,0.30190502]
[1738100956682,0.30120481,664.0,662.46,0.30190502]
[1738100956879,0.27709606,663.99,662.46,0.30190502]
[1738100957386,0.30121389,663.98,662.46,0.30190502]
[1738100957784,0.27709606,663.97,662.46,0.30190502]
[1738100958386,0.30122296,663.96,662.46,0.30190502]
[1738100958986,0.27712697,663.95,662.49,1.11870298]
[1738100959186,0.30123203,663.94,662.49,1.11870298]
[1738100961385,0.27713695,663.93,662.49,1.11870298]
[1738100961592,0.30124111,663.92,662.49,1.11870298]
[1738100961790,0.27713695,663.91,662.49,1.11870298]
[1738100961994,0.30125018,663.9,662.49,1.11870298]
[1738100962192,0.27713695,663.89,662.49,1.11870298]
[1738100962590,0.30125018,663.9,662.49,1.11870298]
[1738100962786,0.27710698,663.89,662.49,1.11870298]
[1738100963192,1.57415016,663.88,662.49,1.11870298]
[1738100963386,0.3012638,663.87,662.46,0.30190502]
[1738100963591,0.27711576,663.86,662.46,0.30190502]
[1738100964593,0.5784065,663.85,662.46,0.30190502]
[1738100964789,0.57841104,663.84,662.46,0.30190502]
[1738100964994,0.57841558,663.83,662.46,0.30190502]
[1738100965294,0.57842012,663.82,662.46,0.30190502]
[1738100965493,0.57842245,663.81,662.46,0.30190502]
[1738100965687,0.57842699,663.8,662.46,0.30190502]
[1738100965888,0.27713142,663.79,662.46,0.30190502]
[1738100966088,0.27713142,663.79,662.58,1.11870298]
[1738100970697,0.27713142,663.79,662.46,0.30190502]
[1738100970698,0.27713142,663.79,662.66,1.11870298]
[1738100972297,0.30129557,663.8,662.66,1.11870298]
[1738100972497,0.27711251,663.79,662.66,1.11870298]
[1738100973798,0.27711251,663.79,662.74,1.11870298]
[1738100974096,0.27708148,663.78,662.74,1.11870298]
[1738100974397,0.27708212,663.77,662.74,1.11870298]
[1738100974599,0.30129557,663.8,662.74,1.11870298]
[1738100976401,0.30129557,663.8,662.9,1.11870298]
[1738100980805,0.30129557,663.8,662.47,0.71871979]
[1738100980806,0.30129557,663.8,662.79,1.11870298]
[1738100982799,0.27712231,663.79,662.79,1.11870298]
[1738100984005,0.27712231,663.79,662.58,1.11870298]
[1738100986207,1.57414423,663.78,662.58,1.11870298]
[1738100986407,0.27712231,663.77,662.58,1.11870298]
[1738100986806,0.27712231,663.77,662.46,0.30190502]
[1738100986807,0.27712231,663.77,662.69,1.11870298]
[1738100989108,1.57414423,663.78,662.69,1.11870298]
[1738100989309,0.27712018,663.77,662.69,1.11870298]
[1738100989511,0.27712018,663.77,662.72,1.11870298]
[1738100991409,1.57414423,663.78,662.72,1.11870298]
[1738100991608,0.27711423,663.77,662.72,1.11870298]
[1738100991803,1.57414423,663.78,662.72,1.11870298]
[1738100992006,0.2771161,663.77,662.72,1.11870298]
[1738100992204,1.57414423,663.78,662.72,1.11870298]
[1738100992607,0.27711241,663.77,662.72,1.11870298]
[1738100992807,0.27711241,663.77,662.66,1.11870298]
[1738100994310,1.57414423,663.78,662.66,1.11870298]
[1738100994511,0.27713242,663.77,662.66,1.11870298]
[1738100994812,0.30131372,663.76,662.66,1.11870298]
[1738100995012,0.27713242,663.75,662.66,1.11870298]
[1738100995313,0.3013228,663.74,662.66,1.11870298]
[1738100995513,0.3013228,663.74,662.46,0.30190502]
[1738100995514,0.27713242,663.73,662.64,1.11870298]
[1738100997416,0.30133188,663.72,662.64,1.11870298]
[1738100997615,0.27713242,663.71,662.64,1.11870298]
[1738100998021,1.57453595,663.7,662.64,1.11870298]
[1738100998218,0.27713242,663.69,662.64,1.11870298]
[1738100998819,0.27713242,663.69,662.46,0.30190502]
[1738100999420,1.57453595,663.7,662.46,0.30190502]
[1738100999621,0.27726675,663.69,662.46,0.30190502]
[1738101001017,0.27725494,663.68,662.46,0.30190502]
[1738101001318,0.27725494,663.67,662.21,1.11870298]
[1738101001624,0.27725494,663.66,662.21,1.11870298]
[1738101001824,0.27725494,663.65,662.21,1.11870298]
[1738101002024,0.27725494,663.69,662.21,1.11870298]
[1738101002324,1.57453595,663.7,662.21,1.11870298]
[1738101002523,0.27727677,663.69,662.21,1.11870298]
[1738101002824,0.27727732,663.68,662.21,1.11870298]
[1738101003019,0.27727732,663.67,662.21,1.11870298]
[1738101003221,0.27727732,663.69,662.21,1.11870298]
[1738101003421,0.27727732,663.68,662.21,1.11870298]
[1738101003623,0.27727732,663.69,662.21,1.11870298]
[1738101003825,0.27727732,663.68,662.07,1.11870298]
[1738101004124,0.27728334,663.67,662.07,1.11870298]
[1738101004323,0.27728334,663.69,662.07,1.11870298]
[1738101004518,0.27728334,663.68,662.08,0.30207829]
[1738101004723,0.27728334,663.69,662.08,0.30207829]
[1738101005024,0.27728334,663.68,662.08,0.30207829]
[1738101005224,0.27728334,663.69,662.08,0.30207829]
[1738101005427,0.27728334,663.68,662.08,0.30207829]
[1738101005625,0.27728334,663.69,662.08,0.30207829]
[1738101005822,0.27728334,663.68,662.08,0.30207829]
[1738101006128,0.27728334,663.67,662.08,0.30207829]
[1738101006425,0.27728334,663.66,662.08,0.30207829]
[1738101006626,0.27728334,663.69,662.08,0.30207829]
[1738101006820,0.27728334,663.68,662.08,0.30207829]
[1738101007021,0.30135912,663.66,662.08,0.30207829]
[1738101007626,0.27731501,663.65,662.08,0.30207829]
[1738101007827,0.27731501,663.64,662.08,0.30207829]
[1738101008025,0.27731501,663.63,662.08,0.30207829]
[1738101008227,0.30138183,663.61,662.08,0.30207829]
[1738101008426,0.27731501,663.6,662.08,0.30207829]
[1738101010130,0.30139091,663.59,662.08,0.30207829]
[1738101010329,0.27731501,663.58,662.08,0.30207829]
[1738101010529,0.3014,663.57,662.08,0.30207829]
[1738101011632,0.27729261,663.56,662.08,0.30207829]
[1738101011830,0.30140908,663.55,662.08,0.30207829]
[1738101015233,0.27729071,663.54,662.08,0.30207829]
[1738101017232,0.27730146,663.53,662.08,0.30207829]
[1738101017426,0.27730146,663.54,662.08,0.30207829]
[1738101017631,0.27730146,663.52,662.08,0.30207829]
[1738101017832,0.30140908,663.55,662.08,0.30207829]
[1738101018035,0.27727449,663.54,662.08,0.30207829]
[1738101018335,0.30141817,663.53,662.08,0.30207829]
[1738101018736,1.57522491,663.52,662.08,0.30207829]
[1738101019135,0.30142725,663.51,662.08,0.30207829]
[1738101023442,0.27730416,663.5,662.08,0.30207829]
[1738101023938,0.30142725,663.51,662.08,0.30207829]
[1738101023939,0.2773273,663.49,662.08,0.30207829]
[1738101024142,0.2773273,663.5,662.08,0.30207829]
[1738101024343,0.2773273,663.49,662.08,0.30207829]
[1738101024538,0.30144088,663.48,662.08,0.30207829]
[1738101024741,0.2773273,663.47,662.08,0.30207829]
[1738101024942,0.30144997,663.46,662.08,0.30207829]
[1738101025244,0.27733781,663.45,662.08,0.30207829]
[1738101025446,0.30145906,663.44,662.08,0.30207829]
[1738101025643,0.27733781,663.43,662.08,0.30207829]
[1738101026041,0.30146814,663.42,662.08,0.30207829]
[1738101026239,0.27733781,663.41,662.08,0.30207829]
[1738101026447,0.30147723,663.4,662.08,0.30207829]
[1738101026747,0.27733781,663.39,662.08,0.30207829]
[1738101026947,0.30148632,663.38,662.08,0.30207829]
[1738101027148,0.27733781,663.37,662.08,0.30207829]
[1738101027448,0.30149541,663.36,662.08,0.30207829]
[1738101027643,0.27733781,663.35,662.08,0.30207829]
[1738101027844,0.3015045,663.34,662.08,0.30207829]
[1738101028048,0.27733781,663.33,662.08,0.30207829]
[1738101028448,0.30151359,663.32,662.08,0.30207829]
[1738101028647,0.27733781,663.31,662.08,0.30207829]
[1738101029149,1.57552206,663.3,662.08,0.30207829]
[1738101029448,0.27733781,663.29,662.08,0.30207829]
[1738101030148,0.27734116,663.28,662.08,0.30207829]
[1738101030448,1.57552206,663.3,662.08,0.30207829]
[1738101030648,0.57886566,663.29,662.08,0.30207829]
[1738101030847,0.57887021,663.28,662.08,0.30207829]
[1738101031048,0.57887475,663.27,662.08,0.30207829]
[1738101031249,0.30154087,663.26,662.08,0.30207829]
[1738101031851,0.27733782,663.25,662.08,0.30207829]
[1738101032952,0.57888324,663.25,662.08,0.30207829]
[1738101033152,0.27733782,663.24,662.08,0.30207829]
[1738101033951,0.30154542,663.25,662.08,0.30207829]
[1738101035450,0.30154542,663.25,662.08,1.42078127]
[1738101038256,0.30154542,663.25,662.08,0.30207829]
[1738101046364,0.27737404,663.24,662.08,0.30207829]
[1738101046759,0.30155451,663.23,662.08,0.30207829]
[1738101046963,1.8772133,663.23,662.08,0.30207829]
[1738101047165,0.27739095,663.22,662.08,0.30207829]
[1738101047566,0.3015636,663.21,662.08,0.30207829]
[1738101048860,0.27738666,663.2,662.08,0.30207829]
[1738101049368,0.3015727,663.19,662.08,0.30207829]
[1738101049568,0.27738666,663.18,662.08,0.30207829]
[1738101050165,0.30158179,663.17,662.08,0.30207829]
[1738101050567,0.27738666,663.16,662.08,0.30207829]
[1738101050762,0.30159089,663.15,662.08,0.30207829]
[1738101055266,0.2773881,663.14,662.08,0.30207829]
[1738101055472,0.30159998,663.13,662.08,0.30207829]
[1738101055672,0.2773881,663.12,662.08,0.30207829]
[1738101056671,0.30159998,663.13,662.08,0.30207829]
[1738101057370,1.57567068,663.12,662.08,0.30207829]
[1738101063188,1.57567068,663.12,661.83,1.11870298]
[1738101064880,1.57567068,663.12,661.84,0.30218783]
[1738101067488,1.87727521,663.12,661.84,0.30218783]
[1738101067689,1.87727521,663.12,661.87,1.11870298]
[1738101070086,1.87727521,663.12,661.94,1.11870298]
[1738101071389,0.30160453,663.12,661.94,1.11870298]
[1738101071590,1.87726926,663.12,661.94,1.11870298]
[1738101073186,1.87726926,663.12,661.94,1.42084516]
[1738101073588,1.87726926,663.12,661.94,0.30214218]
[1738101077097,1.87726926,663.12,662.12,1.11870298]
[1738101077296,0.30160453,663.12,662.12,1.11870298]
[1738101080399,0.30160453,663.12,661.94,0.30214218]
[1738101080400,0.30160453,663.12,662.24,1.11870298]
[1738101083406,0.30160453,663.12,662.16,1.11870298]
[1738101085711,0.30160453,663.12,662.08,1.11870298]
[1738101087411,1.87694829,663.12,662.08,1.11870298]
[1738101089113,0.30160453,663.12,662.08,1.11870298]
[1738101091614,0.30160453,663.12,662.11,1.11870298]
[1738101095711,0.30160453,663.12,662.14,1.11870298]
[1738101098119,0.30160453,663.12,662.18,1.11870298]
[1738101101422,0.30160453,663.12,662.19,1.11870298]
[1738101104724,0.30160453,663.12,662.17,1.11870298]
[1738101107222,1.87707904,663.12,662.17,1.11870298]
[1738101108023,1.87707904,663.12,662.29,1.11870298]
[1738101109330,0.30160908,663.11,662.29,1.11870298]
[1738101110826,0.30160908,663.11,661.96,1.11870298]
[1738101114134,0.30160908,663.11,662.07,1.11870298]
[1738101116833,0.27740611,663.1,662.07,1.11870298]
[1738101117136,0.57902889,663.09,662.07,1.11870298]
[1738101117338,0.30161818,663.09,662.07,1.11870298]
[1738101117537,0.27741694,663.08,662.07,1.11870298]
[1738101118036,0.27741694,663.08,661.94,0.30214218]
[1738101118437,0.57905129,663.07,661.94,0.30214218]
[1738101118636,0.57905584,663.06,661.94,0.30214218]
[1738101118938,0.57906039,663.05,661.94,0.30214218]
[1738101119237,0.57906494,663.04,661.94,0.30214218]
[1738101119435,0.30164547,663.03,661.94,0.30214218]
[1738101121640,0.30164547,663.03,661.95,1.11870298]
[1738101124737,0.30164547,663.03,661.66,1.11870298]
[1738101130948,0.27748036,663.02,661.66,1.11870298]
[1738101131150,0.30164547,663.03,661.51,1.11870298]
[1738101131341,0.30164547,663.03,661.52,0.30233401]
[1738101134253,0.30164547,663.03,661.54,1.11870298]
[1738101134551,0.30164547,663.03,661.55,0.3023203]
[1738101136548,0.27749365,663.02,661.55,0.3023203]
[1738101137151,0.27749365,663.02,661.59,1.11870298]
[1738101137953,0.30165912,663.0,661.59,1.11870298]
[1738101138152,0.27749365,662.99,661.59,1.11870298]
[1738101138653,0.30165912,663.0,661.59,1.11870298]
[1738101138845,1.57649155,662.98,661.59,1.11870298]
[1738101140046,0.30167732,662.96,661.59,1.11870298]
[1738101140953,0.30167732,662.96,661.55,0.3023203]
[1738101153152,0.29082158,662.96,661.55,0.3023203]
[1738101156362,0.27757117,662.95,661.55,0.3023203]
[1738101157156,0.29082158,662.96,661.55,0.3023203]
[1738101157864,0.27755431,662.95,661.55,0.3023203]
[1738101158264,0.30168642,662.94,661.55,0.3023203]
[1738101158467,0.27755431,662.93,661.55,0.3023203]
[1738101158664,0.30169552,662.92,661.55,0.3023203]
[1738101159061,0.27756612,662.91,661.55,0.3023203]
[1738101159263,1.57660464,662.91,661.55,0.3023203]
[1738101159860,0.30170463,662.9,661.55,0.3023203]
[1738101160667,0.27756896,662.89,661.55,0.3023203]
[1738101160869,0.30171373,662.88,661.55,0.3023203]
[1738101161063,0.27756896,662.87,661.55,0.3023203]
[1738101161372,0.30172283,662.86,661.55,0.3023203]
[1738101161563,0.27756896,662.85,661.55,0.3023203]
[1738101161765,0.30173194,662.84,661.55,0.3023203]
[1738101161965,0.27756896,662.83,661.55,0.3023203]
[1738101162366,0.30174104,662.82,661.55,0.3023203]
[1738101162569,0.27756896,662.81,661.55,0.3023203]
[1738101162968,0.30175015,662.8,661.55,0.3023203]
[1738101163171,0.2775553,662.79,661.55,0.3023203]
[1738101163464,0.30175925,662.78,661.55,0.3023203]
[1738101164766,0.30175925,662.78,661.58,1.11870298]
[1738101167268,0.30175925,662.78,661.74,1.11870298]
[1738101168373,0.27754531,662.77,661.74,1.11870298]
[1738101169772,1.57646179,662.76,661.74,1.11870298]
[1738101169974,0.27754531,662.75,661.72,1.11870298]
[1738101171272,0.30177746,662.74,661.72,1.11870298]
[1738101173275,0.30177746,662.74,661.77,1.11870298]
[1738101176177,0.30177746,662.74,661.55,0.3023203]
[1738101179179,0.27760051,662.73,661.55,0.3023203]
[1738101179373,0.30178657,662.72,661.55,0.3023203]
[1738101179578,0.27760051,662.71,661.55,0.3023203]
[1738101179878,0.30179568,662.7,661.55,0.3023203]
[1738101180075,0.27760051,662.69,661.55,0.3023203]
[1738101180274,0.30180479,662.68,661.55,0.3023203]
[1738101180480,0.27760051,662.67,661.55,0.3023203]
[1738101180684,1.87871305,662.68,661.55,0.3023203]
[1738101180685,0.3018139,662.66,661.55,0.3023203]
[1738101187382,0.3018139,662.66,661.41,1.11870298]
[1738101188088,0.27766766,662.65,661.41,1.11870298]
[1738101189986,0.30182756,662.63,661.41,1.11870298]
[1738101190292,0.30182756,662.63,660.64,3.12811299]
[1738101190293,0.27766766,662.62,661.19,1.11870298]
[1738101190991,1.57739073,662.61,661.19,1.11870298]
[1738101191185,0.27766766,662.6,661.19,1.11870298]
[1738101192796,0.27770981,662.59,661.19,1.11870298]
[1738101192993,0.27770981,662.58,661.19,1.11870298]
[1738101193191,0.5795647,662.57,661.19,1.11870298]
[1738101193495,0.27770981,662.56,661.19,1.11870298]
[1738101193789,0.57956926,662.56,661.1,1.11870298]
[1738101193994,0.57956926,662.56,661.1,1.42122907]
[1738101193995,0.27770981,662.55,661.1,1.42122907]
[1738101194895,0.30186856,662.54,661.1,1.42122907]
[1738101195195,0.27770981,662.53,661.1,1.42122907]
[1738101195391,0.30187767,662.52,661.1,1.42122907]
[1738101195592,0.27770981,662.51,661.1,1.42122907]
[1738101196492,0.30188679,662.5,661.1,1.42122907]
[1738101196693,0.27770981,662.49,661.14,1.11870298]
[1738101197191,0.27770702,662.48,661.14,1.11870298]
[1738101197397,0.30188679,662.5,661.14,1.11870298]
[1738101199597,0.27767401,662.49,661.14,1.11870298]
[1738101199802,0.30188679,662.5,661.1,0.30252609]
[1738101200196,0.27768524,662.49,661.1,0.30252609]
[1738101200498,0.27768942,662.48,661.1,0.30252609]
[1738101200699,0.27768942,662.49,661.1,0.30252609]
[1738101200997,0.27769153,662.48,661.1,0.30252609]
[1738101201298,0.27769153,662.47,661.1,0.30252609]
[1738101201695,1.57752183,662.48,661.1,0.30252609]
[1738101205998,0.27770437,662.47,661.1,0.30252609]
[1738101207398,0.30190502,662.46,661.1,0.30252609]
[1738101207698,0.27770437,662.45,661.1,0.30252609]
[1738101208195,0.30190502,662.46,661.1,0.30252609]
[1738101209195,0.27770499,662.45,661.1,0.30252609]
[1738101209395,0.30190502,662.46,661.1,0.30252609]
[1738101209802,0.30190502,662.46,661.12,1.11870298]
[1738101211094,0.27770546,662.45,661.12,1.11870298]
[1738101211698,0.30190502,662.46,661.12,1.11870298]
[1738101211901,0.30190502,662.46,661.15,1.11870298]
[1738101212502,0.27769822,662.45,661.15,1.11870298]
[1738101213905,0.30190502,662.46,661.15,1.11870298]
[1738101215505,0.30190502,662.46,661.25,1.11870298]
[1738101216102,0.27768863,662.45,661.25,1.11870298]
[1738101217405,0.30190502,662.46,661.25,1.11870298]
[1738101217406,0.27770222,662.44,661.25,1.11870298]
[1738101217606,0.27770222,662.45,661.25,1.11870298]
[1738101217806,0.27770222,662.44,661.25,1.11870298]
[1738101218008,0.30190502,662.46,661.25,1.11870298]
[1738101218009,0.27770222,662.43,661.25,1.11870298]
[1738101218308,0.27770222,662.42,661.25,1.11870298]
[1738101218506,0.27770222,662.45,661.3,1.11870298]
[1738101218705,0.30190502,662.46,661.3,1.11870298]
[1738101221411,0.30190502,662.46,661.2,1.11870298]
[1738101222707,0.27773758,662.45,661.2,1.11870298]
[1738101224611,0.30191413,662.44,661.2,1.11870298]
[1738101224812,0.27773758,662.43,661.2,1.11870298]
[1738101225111,0.30192325,662.42,661.2,1.11870298]
[1738101225307,0.27773758,662.41,661.19,1.11870298]
[1738101225709,0.27777797,662.4,661.19,1.11870298]
[1738101225913,1.57767082,662.4,661.19,1.11870298]
[1738101226308,0.277774,662.39,661.19,1.11870298]
[1738101227210,0.57971496,662.38,661.19,1.11870298]
[1738101227415,0.30194604,662.37,661.19,1.11870298]
[1738101227615,0.2777733,662.36,661.19,1.11870298]
[1738101228117,0.2777733,662.36,661.1,0.30252609]
[1738101228515,0.30195515,662.35,661.1,0.30252609]
[1738101228715,0.2777733,662.34,661.1,0.30252609]
[1738101228913,0.57975139,662.33,661.1,0.30252609]
[1738101229107,0.57975595,662.32,661.1,0.30252609]
[1738101229316,0.57976051,662.31,661.1,0.30252609]
[1738101229516,0.57976507,662.3,661.1,0.30252609]
[1738101229814,0.27778712,662.29,661.1,0.30252609]
[1738101230516,0.30198707,662.28,661.1,0.30252609]
[1738101230716,0.27778712,662.27,661.1,0.30252609]
[1738101231817,0.30199619,662.26,661.1,0.30252609]
[1738101232218,0.27778712,662.25,661.1,0.30252609]
[1738101232618,0.30199619,662.26,661.1,0.30252609]
[1738101236113,1.57784369,662.25,661.1,0.30252609]
[1738101236317,0.30200531,662.24,661.1,0.30252609]
[1738101246523,0.30200531,662.24,661.17,1.11870298]
[1738101247122,1.10978794,662.63,661.17,1.11870298]
[1738101247329,1.57721201,662.55,661.17,1.11870298]
[1738101247528,0.27761628,662.54,661.17,1.11870298]
[1738101247727,1.10978794,662.63,661.17,1.11870298]
[1738101247927,1.57708097,662.6,661.17,1.11870298]
[1738101248929,1.10978794,662.63,661.17,1.11870298]
[1738101249822,1.10978794,662.63,661.1,0.30252609]
[1738101249823,1.5769559,662.68,661.4,1.11870298]
[1738101252829,1.5769559,662.68,661.29,1.11870298]
[1738101254228,1.5769559,662.68,661.3,0.30243459]
[1738101254730,0.27756492,662.67,661.3,0.30243459]
[1738101256529,1.5769559,662.68,661.3,0.30243459]
[1738101256733,0.27757568,662.67,661.3,0.30243459]
[1738101257635,1.5769559,662.68,661.3,0.30243459]
[1738101258036,0.72802514,663.25,661.3,0.30243459]
[1738101258338,1.57683681,662.73,661.3,0.30243459]
[1738101258535,0.27755226,662.72,661.3,0.30243459]
[1738101258737,0.27755226,662.71,661.3,0.30243459]
[1738101258938,1.57680704,662.73,661.3,0.30243459]
[1738101259340,0.27755459,662.72,661.3,0.30243459]
[1738101259940,0.2775526,662.71,661.3,0.30243459]
[1738101260237,0.2775526,662.7,661.3,0.30243459]
[1738101260440,1.57680704,662.73,661.3,0.30243459]
[1738101260637,0.27755246,662.72,661.3,0.30243459]
[1738101261237,1.57680704,662.73,661.3,0.30243459]
[1738101269651,0.30155451,663.23,661.3,0.30243459]
[1738101269948,1.57674155,662.85,661.3,0.30243459]
[1738101270149,0.30155451,663.23,661.3,0.30243459]
[1738101270450,1.8538244,663.22,661.3,0.30243459]
[1738101270749,0.30156815,663.2,661.3,0.30243459]
[1738101270945,0.27752327,663.19,661.3,0.30243459]
[1738101271149,0.30157724,663.18,661.3,0.30243459]
[1738101272050,0.27743767,663.17,661.3,0.30243459]
[1738101272251,0.30158634,663.16,661.3,0.30243459]
[1738101272751,0.27743767,663.15,661.3,0.30243459]
[1738101272945,0.30158634,663.16,661.3,0.30243459]
[1738101273147,0.27744436,663.15,661.3,0.30243459]
[1738101273351,0.30159543,663.14,661.3,0.30243459]
[1738101273547,0.27744436,663.13,661.3,0.30243459]
[1738101274353,0.30160453,663.12,661.3,0.30243459]
[1738101274851,0.27747175,663.11,661.3,0.30243459]
[1738101275149,0.30161363,663.1,661.3,0.30243459]
[1738101275351,0.27747175,663.09,661.3,0.30243459]
[1738101275550,0.30162273,663.08,661.3,0.30243459]
[1738101275746,0.27747175,663.07,661.3,0.30243459]
[1738101276152,0.30163182,663.06,661.3,0.30243459]
[1738101276351,0.27747175,663.05,661.3,0.30243459]
[1738101276652,0.30164092,663.04,661.3,0.30243459]
[1738101276845,0.27747175,663.03,661.3,0.30243459]
[1738101277051,0.30165002,663.02,661.3,0.30243459]
[1738101277247,0.27747175,663.01,661.3,0.30243459]
[1738101277451,0.27747175,663.01,661.42,1.11970406]
[1738101277452,0.30165912,663.0,661.42,1.11970406]
[1738101277647,0.27747175,662.99,661.44,0.30237058]
[1738101277954,0.30166822,662.98,661.44,0.30237058]
[1738101278253,0.27747769,662.97,661.44,0.30237058]
[1738101278645,0.30166822,662.98,661.44,0.30237058]
[1738101279955,0.30166822,662.98,661.54,1.11970406]
[1738101280155,0.30166822,662.98,661.55,0.3023203]
[1738101280556,1.57617619,662.97,661.55,0.3023203]
[1738101280755,0.30167732,662.96,661.55,0.3023203]
[1738101282057,0.27752519,662.95,661.55,0.3023203]
[1738101282259,0.30168642,662.94,661.55,0.3023203]
[1738101282458,0.27752519,662.93,661.55,0.3023203]
[1738101286156,0.30168642,662.94,661.55,0.3023203]
[1738101286755,0.30168642,662.94,661.66,1.11970406]
[1738101289354,0.30168642,662.94,661.55,0.3023203]
[1738101291754,0.2775619,662.93,661.55,0.3023203]
[1738101293057,0.30168642,662.94,661.55,0.3023203]
[1738101293258,0.2775981,662.93,661.55,0.3023203]
[1738101299269,1.38176976,662.93,661.55,0.3023203]
[1738101299469,0.2775981,662.92,661.55,0.3023203]
[1738101302173,1.38176976,662.92,661.55,0.3023203]
[1738101302376,0.2775981,662.91,661.55,0.3023203]
[1738101302671,0.2776122,662.9,661.55,0.3023203]
[1738101302875,0.2776122,662.89,661.55,0.3023203]
[1738101303177,0.2776122,662.88,661.55,0.3023203]
[1738101303376,0.2776122,662.89,661.55,0.3023203]
[1738101303671,0.2776122,662.88,661.55,0.3023203]
[1738101303876,0.2776122,662.87,661.55,0.3023203]
[1738101304071,0.2776122,662.89,661.55,0.3023203]
[1738101304268,0.27761531,662.88,661.55,0.3023203]
[1738101304574,0.27761531,662.87,661.55,0.3023203]
[1738101304877,0.27761531,662.86,661.55,0.3023203]
[1738101305076,0.27761531,662.85,661.55,0.3023203]
[1738101305374,0.27761531,662.84,661.55,0.3023203]
[1738101305575,0.27761531,662.83,661.55,0.3023203]
[1738101305877,0.27761531,662.82,661.55,0.3023203]
[1738101306174,1.57675941,662.9,661.55,0.3023203]
[1738101306578,0.27764004,662.89,661.55,0.3023203]
[1738101307676,0.27764004,662.89,661.36,1.11970406]
[1738101308272,0.27764004,662.89,661.02,1.11970406]
[1738101308774,0.27764004,662.89,661.03,0.30255812]
[1738101309172,1.57675941,662.9,661.03,0.30255812]
[1738101309376,0.27772762,662.89,661.03,0.30255812]
[1738101310772,0.30171828,662.87,661.03,0.30255812]
[1738101311076,0.27772762,662.86,661.03,0.30255812]
[1738101312077,0.30173194,662.84,661.03,0.30255812]
[1738101312278,0.27772762,662.83,661.03,0.30255812]
[1738101312475,0.30174559,662.81,661.03,0.30255812]
[1738101312679,0.27772762,662.8,661.03,0.30255812]
[1738101312878,0.27772762,662.79,661.03,0.30255812]
[1738101313080,0.27772762,662.78,661.03,0.30255812]
[1738101313280,0.27772762,662.77,661.03,0.30255812]
[1738101313480,0.27772762,662.76,661.03,0.30255812]
[1738101313678,0.27772762,662.75,661.03,0.30255812]
[1738101313979,0.30178202,662.73,661.03,0.30255812]
[1738101314377,0.27772762,662.72,661.03,0.30255812]
[1738101315474,0.30179568,662.7,661.03,0.30255812]
[1738101315678,0.27772762,662.69,661.03,0.30255812]
[1738101315877,0.2777412,662.68,661.03,0.30255812]
[1738101316078,0.57955054,662.67,661.03,0.30255812]
[1738101316277,0.30181845,662.65,661.03,0.30255812]
[1738101316478,0.2777412,662.64,661.03,0.30255812]
[1738101317781,0.30183212,662.62,661.03,0.30255812]
[1738101318181,0.27775495,662.61,661.03,0.30255812]
[1738101319982,0.30184578,662.59,661.03,0.30255812]
[1738101320181,0.27775495,662.58,661.03,0.30255812]
[1738101320481,0.30185945,662.56,661.03,0.30255812]
[1738101320683,0.27775495,662.55,661.03,0.30255812]
[1738101320884,0.27776035,662.54,661.03,0.30255812]
[1738101321085,0.27776035,662.55,661.03,0.30255812]
[1738101321289,0.27776035,662.54,661.03,0.30255812]
[1738101321578,0.30185945,662.56,661.03,0.30255812]
[1738101321782,0.27767585,662.55,661.03,0.30255812]
[1738101321981,0.30185945,662.56,661.03,0.30255812]
[1738101323484,1.57761718,662.55,661.03,0.30255812]
[1738101328091,0.27765452,662.54,661.03,0.30255812]
[1738101328482,0.27764703,662.53,661.03,0.30255812]
[1738101328686,1.57761718,662.55,661.03,0.30255812]
[1738101328885,0.27759633,662.54,661.03,0.30255812]
[1738101329186,0.27759633,662.53,661.03,0.30255812]
[1738101329490,0.27759633,662.52,661.03,0.30255812]
[1738101329691,0.30185945,662.56,661.03,0.30255812]